bitfinex-derivatives/quotes_ETHF0:USTF0_20250709
["timestamp","ask_amount","ask_price","bid_price","bid_amount"]
[1752062169816,0.00570017,2629.3,2629.2,0.76059]
[1752062170122,0.76629017,2629.3,2629.2,1.77955288]
[1752062170825,0.76629017,2629.3,2629.2,0.76059]
[1752062172425,0.76059,2629.2,2629.1,2.0463]
[1752062174223,0.76628017,2629.3,2629.1,2.0463]
[1752062174528,0.00570017,2629.3,2629.2,0.76059]
[1752062174730,0.76626017,2629.3,2629.1,2.0463]
[1752062175223,0.76626017,2629.3,2629.2,0.76059]
[1752062175624,0.00570017,2629.3,2629.2,0.76059]
[1752062176125,0.76626017,2629.3,2629.2,0.76059]
[1752062176330,0.00570017,2629.3,2629.2,0.76059]
[1752062176630,0.76626017,2629.3,2629.2,0.76059]
[1752062176930,0.00570017,2629.3,2629.2,0.76059]
[1752062177331,0.76626017,2629.3,2629.2,0.76059]
[1752062177834,0.76059,2629.2,2629.1,2.0463]
[1752062178032,0.76628017,2629.3,2629.2,0.76059]
[1752062178333,0.00570017,2629.3,2629.2,3.45610704]
[1752062179431,1.53114,2629.8,2629.7,0.76044]
[1752062180231,1.53114,2629.8,2629.6,3.2078]
[1752062180232,0.76044,2629.7,2629.6,3.96825]
[1752062180434,0.76044,2629.7,2629.6,5.26305]
[1752062180838,0.76044,2629.7,2629.6,3.96825]
[1752062181440,1.53113,2629.8,2629.7,0.76044]
[1752062181636,0.7707,2629.8,2629.7,0.76044]
[1752062182139,0.7707,2629.8,2629.7,1.49174]
[1752062182542,4.66057704,2630.2,2629.8,0.76039]
[1752062182745,1.47623,2630.1,2630.0,3.2078]
[1752062184644,2.87694704,2630.1,2630.0,3.2078]
[1752062190339,3.746,2630.6,2630.0,6.50938704]
[1752062190546,0.76026,2630.4,2630.2,0.76029]
[1752062190845,1.53723,2630.5,2630.3,3.2078]
[1752062191146,1.53723,2630.5,2630.3,3.96807]
[1752062191346,0.777,2630.5,2630.4,0.76024]
[1752062192648,1.53721,2630.5,2630.4,0.76024]
[1752062194838,0.76024,2630.4,2630.3,3.96806]
[1752062195244,0.76024,2630.4,2630.3,3.96807]
[1752062195448,1.53724,2630.5,2630.4,0.76024]
[1752062196049,1.53724,2630.5,2630.4,3.96804]
[1752062196348,1.53724,2630.5,2630.4,3.2078]
[1752062196648,1.53724,2630.5,2630.4,3.96804]
[1752062200550,0.777,2630.5,2630.4,3.96804]
[1752062200952,1.53721,2630.5,2630.4,3.96804]
[1752062201252,0.777,2630.5,2630.4,3.96804]
[1752062201453,0.7602,2630.6,2630.5,0.76021]
[1752062206364,0.76021,2630.5,2630.4,3.96802]
[1752062206667,0.76021,2630.5,2630.4,3.2078]
[1752062207067,5.64604,2631.2,2630.4,5.1084]
[1752062207266,0.76011,2630.9,2630.8,0.7601]
[1752062209068,0.76016,2630.8,2630.7,0.76014]
[1752062212664,2.16083704,2630.9,2630.8,0.76013]
[1752062212869,1.49718,2631.0,2630.6,5.10824]
[1752062213071,0.76011,2630.9,2630.8,0.7601]
[1752062213372,2.89790704,2631.0,2630.9,0.7601]
[1752062213572,1.49719,2631.0,2630.9,0.7601]
[1752062213972,1.49719,2631.0,2630.9,3.9679]
[1752062215069,1.49719,2631.0,2630.9,3.2078]
[1752062215374,0.7371,2631.0,2630.9,3.9679]
[1752062215780,1.49717,2631.0,2630.9,3.9679]
[1752062216174,1.49717,2631.0,2630.9,3.2078]
[1752062216376,1.49717,2631.0,2630.9,3.9679]
[1752062216680,2.89788704,2631.0,2630.9,3.2078]
[1752062218380,1.49717,2631.0,2630.9,3.2078]
[1752062218584,2.89788704,2631.0,2630.9,3.2078]
[1752062219580,2.89788704,2631.0,2630.9,3.9679]
[1752062219878,2.89788704,2631.0,2630.9,3.2078]
[1752062220179,1.49717,2631.0,2630.9,3.2078]
[1752062220378,2.89788704,2631.0,2630.9,3.2078]
[1752062223376,1.90025,2630.9,2630.3,2.25837267]
[1752062223574,1.40071704,2630.4,2630.2,2.25837267]
[1752062223774,1.48237,2630.3,2630.2,2.25837267]
[1752062226374,0.76027,2630.3,2630.2,2.25837267]
[1752062226572,0.76027,2630.3,2630.2,3.50157267]
[1752062227082,0.76026,2630.4,2630.2,4.26187267]
[1752062227282,0.736,2630.5,2630.2,4.26187267]
[1752062227577,0.76027,2630.3,2630.2,3.50157267]
[1752062228582,0.76027,2630.3,2630.2,2.0035]
[1752062228880,0.7603,2630.2,2630.1,2.25837267]
[1752062229080,0.76033,2630.1,2630.0,4.75284]
[1752062229684,0.76033,2630.1,2630.0,6.12244]
[1752062229985,0.76031,2630.2,2630.1,0.7603]
[1752062231481,0.76031,2630.2,2630.1,2.0112]
[1752062233683,0.76031,2630.2,2630.1,2.01123]
[1752062234683,0.76029,2630.3,2630.2,0.76028]
[1752062236581,3.30136704,2630.4,2630.1,0.7603]
[1752062236785,1.40071704,2630.2,2630.1,0.7603]
[1752062236985,0.76029,2630.3,2630.2,0.7603]
[1752062237388,2.16097704,2630.4,2630.3,0.76027]
[1752062238687,0.76026,2630.4,2630.3,0.76027]
[1752062239188,0.7603,2630.3,2630.2,0.76027]
[1752062240588,0.76033,2630.2,2630.1,0.76031]
[1752062241088,0.76029,2630.3,2630.2,0.76027]
[1752062241689,0.76029,2630.3,2630.0,8.13810637]
[1752062241690,0.736,2630.5,2630.0,7.63793341]
[1752062241885,0.736,2630.5,2630.4,0.76024]
[1752062242186,1.49621,2630.5,2630.4,0.76024]
[1752062242381,0.76027,2630.4,2630.3,0.76025]
[1752062242882,0.76027,2630.3,2630.2,2.03577]
[1752062243586,0.76027,2630.3,2630.2,0.76027]
[1752062243990,0.76033,2630.2,2630.1,0.76033]
[1752062244482,0.76033,2630.1,2630.0,6.99755637]
[1752062244686,1.48043,2630.1,2630.0,6.99755637]
[1752062244886,1.48043,2630.1,2630.0,4.72744017]
[1752062245290,1.48043,2630.1,2630.0,6.99755637]
[1752062247392,1.48043,2630.1,2630.0,6.23721637]
[1752062247583,1.48043,2630.1,2630.0,6.99757637]
[1752062247786,1.48043,2630.1,2630.0,4.72746017]
[1752062248085,1.48043,2630.1,2630.0,6.99757637]
[1752062249090,1.48043,2630.1,2630.0,4.72746017]
[1752062251191,1.48043,2630.1,2630.0,6.99757637]
[1752062252184,1.48043,2630.1,2630.0,6.23721637]
[1752062252386,1.48043,2630.1,2630.0,5.48361637]
[1752062252880,2.88114704,2630.1,2630.0,29.27150017]
[1752062253590,2.88114704,2630.1,2630.0,3.21350017]
[1752062253891,2.88114704,2630.1,2630.0,0.00570017]
[1752062254391,4.12474704,2630.1,2630.0,0.00570017]
[1752062258491,0.76044,2629.7,2629.6,3.2078]
[1752062258682,2.16115704,2629.7,2629.6,3.2078]
[1752062263997,0.7605,2629.5,2629.4,32.2944262]
[1752062264198,0.7605,2629.5,2629.4,33.6053262]
[1752062264498,0.7605,2629.5,2629.4,32.8438162]
[1752062264690,0.7605,2629.5,2629.4,33.6043462]
[1752062265093,0.7605,2629.5,2629.4,7.5493462]
[1752062265298,0.7605,2629.5,2629.4,33.6043462]
[1752062265796,0.7605,2629.5,2629.4,31.33423]
[1752062265994,1.40071704,2629.5,2629.3,0.76055]
[1752062266201,0.76059,2629.2,2629.1,27.5918]
[1752062266396,0.76059,2629.2,2629.1,32.1105]
[1752062267900,1.40071704,2629.3,2629.2,0.76059]
[1752062268197,1.40071704,2629.3,2629.2,2.11489]
[1752062268900,2.16130704,2629.3,2629.2,2.11489]
[1752062269801,0.76059,2629.2,2629.1,30.79959]
[1752062270000,0.76059,2629.2,2629.1,32.17789]
[1752062271697,0.76059,2629.2,2629.1,3.985]
[1752062271903,0.76067,2628.9,2628.8,3.2078]
[1752062272099,0.76067,2628.9,2628.8,30.0205]
[1752062273604,0.76067,2628.9,2628.8,3.2078]
[1752062273805,0.76067,2628.9,2628.8,29.2598]
[1752062274008,0.76067,2628.9,2628.8,30.0205]
[1752062274506,2.16138704,2629.0,2628.9,0.76067]
[1752062274706,2.16138704,2629.0,2628.8,30.02048]
[1752062274908,2.16138704,2629.0,2628.9,0.76067]
[1752062275506,0.76067,2628.9,2628.8,3.2078]
[1752062275709,0.76067,2628.9,2628.8,30.0195]
[1752062276109,0.76067,2628.9,2628.8,3.9685]
[1752062277112,2.12361704,2629.1,2628.8,3.2078]
[1752062277412,2.12361704,2629.1,2628.9,0.76066]
[1752062277413,0.76066,2629.0,2628.9,0.76066]
[1752062277709,0.76066,2629.0,2628.9,1.49446]
[1752062278812,0.76066,2629.0,2628.9,0.7338]
[1752062279910,0.76066,2629.0,2628.9,1.49447]
[1752062282015,0.76066,2629.0,2628.9,0.7338]
[1752062282506,0.76066,2629.0,2628.9,1.49447]
[1752062284014,0.76066,2629.0,2628.9,0.7338]
[1752062284215,0.76066,2629.0,2628.9,1.49447]
[1752062286114,0.76067,2628.9,2628.8,0.76068]
[1752062286316,2.16138704,2628.9,2628.8,0.76068]
[1752062287211,2.16138704,2628.9,2628.6,29.83111347]
[1752062287212,0.76073,2628.7,2628.6,29.83111347]
[1752062287713,1.51202,2628.8,2628.7,0.76073]
[1752062288116,0.76073,2628.7,2628.6,29.83112347]
[1752062289318,0.76073,2628.7,2628.6,3.78212347]
[1752062289513,0.76073,2628.7,2628.6,29.83012347]
[1752062290413,0.76073,2628.7,2628.6,3.78212347]
[1752062291419,1.51201,2628.8,2628.7,0.76073]
[1752062293117,1.51201,2628.8,2628.7,3.03001347]
[1752062293518,2.91272704,2628.8,2628.7,2.26928347]
[1752062293718,0.76073,2628.7,2628.6,2.26928347]
[1752062294921,0.76073,2628.7,2628.6,3.03002347]
[1752062295420,0.76073,2628.7,2628.6,2.26928347]
[1752062295821,0.76073,2628.7,2628.6,3.03004347]
[1752062297824,0.7513,2628.8,2628.7,0.76073]
[1752062298518,1.512,2628.8,2628.7,0.76073]
[1752062299220,1.512,2628.8,2628.7,3.03001347]
[1752062299622,1.512,2628.8,2628.7,2.26928347]
[1752062302723,1.512,2628.8,2628.4,3.4017843]
[1752062302724,0.76079,2628.5,2628.4,3.4017843]
[1752062302925,0.76082,2628.4,2628.3,3.4017843]
[1752062304527,0.76085,2628.3,2628.2,3.4017843]
[1752062306319,2.7411513,2628.3,2627.8,29.4427843]
[1752062306529,0.76096,2627.9,2627.8,29.4427843]
[1752062306722,0.76096,2627.9,2627.8,3.4017843]
[1752062306922,1.54216,2627.9,2627.8,3.4017843]
[1752062307319,0.76099,2627.8,2627.7,3.4017843]
[1752062308329,0.76099,2627.8,2627.6,34.2036243]
[1752062308527,0.76102,2627.7,2627.6,33.4425843]
[1752062309432,0.76102,2627.7,2627.6,33.4445843]
[1752062310031,0.76102,2627.7,2627.6,34.2056343]
[1752062310428,0.76102,2627.7,2627.6,33.4445843]
[1752062310829,0.76102,2627.7,2627.6,34.7431843]
[1752062311227,0.76102,2627.7,2627.6,35.5042343]
[1752062311726,0.76102,2627.7,2627.6,34.7431843]
[1752062311922,0.76102,2627.7,2627.6,35.5042343]
[1752062312122,0.76102,2627.7,2627.6,34.7431843]
[1752062312329,0.76102,2627.7,2627.6,31.3414]
[1752062312630,0.76102,2627.7,2627.6,5.2994]
[1752062312929,0.76102,2627.7,2627.6,31.3414]
[1752062313931,0.76102,2627.7,2627.6,30.0428]
[1752062314428,0.76102,2627.7,2627.6,30.80385]
[1752062315929,0.76102,2627.8,2627.7,0.76099]
[1752062316431,0.76102,2627.8,2627.7,2.14079]
[1752062316630,0.76099,2627.9,2627.8,0.76098]
[1752062316934,0.76095,2628.0,2627.9,0.76094]
[1752062317736,0.7486,2628.1,2628.0,0.76093]
[1752062318032,0.76087,2628.3,2628.2,0.76085]
[1752062324039,0.7556,2628.4,2628.3,0.76085]
[1752062324240,2.1633613,2628.5,2628.4,0.76082]
[1752062324438,1.4025513,2628.5,2628.4,0.76082]
[1752062324637,0.76083,2628.4,2628.3,0.76082]
[1752062327241,0.76086,2628.3,2628.2,0.76085]
[1752062327541,2.9396113,2628.3,2628.2,0.76085]
[1752062328639,0.7609,2628.2,2628.1,0.76089]
[1752062329245,0.76091,2628.1,2628.0,0.76091]
[1752062329447,0.7609,2628.2,2628.1,0.7609]
[1752062330738,0.76091,2628.1,2628.0,1.52251]
[1752062333946,0.76091,2628.1,2628.0,2.87321]
[1752062334347,4.0808913,2628.3,2628.0,2.87321]
[1752062334348,0.7609,2628.2,2628.1,0.76088]
[1752062335345,2.13270116,2628.2,2628.1,0.76088]
[1752062337156,1.37180116,2628.2,2628.1,5.3712313]
[1752062337352,6.3974,2628.6,2628.3,0.7608]
[1752062337652,6.3974,2628.6,2628.4,0.76081]
[1752062337653,2.13230546,2628.5,2628.4,0.76081]
[1752062338446,2.13230546,2628.5,2628.3,0.7885]
[1752062338447,0.76081,2628.4,2628.3,1.54932]
[1752062338650,2.13230546,2628.4,2628.3,1.54932]
[1752062339250,1.37149546,2628.4,2628.3,1.54932]
[1752062339551,1.37149546,2628.4,2628.3,2.87252]
[1752062340148,2.13230546,2628.4,2628.3,2.87252]
[1752062340547,1.37149546,2628.4,2628.3,2.87252]
[1752062340849,2.13230546,2628.4,2628.3,2.87252]
[1752062342453,2.13230546,2628.4,2628.3,1.54932]
[1752062342652,2.13230546,2628.4,2628.3,0.76082]
[1752062343351,2.13230546,2628.4,2628.3,26.78682]
[1752062344152,2.13230546,2628.4,2628.3,26.78582]
[1752062345254,2.13230546,2628.4,2628.3,0.76082]
[1752062345453,2.13230546,2628.4,2628.3,26.78482]
[1752062346359,3.2078,2628.0,2626.3,8.20056787]
[1752062346546,1.4025513,2626.4,2625.8,53.78]
[1752062346745,1.90283,2627.4,2626.0,3.2078]
[1752062346746,1.37149546,2626.3,2626.0,3.2078]
[1752062347047,3.65422316,2626.2,2626.1,53.799]
[1752062347251,3.65422316,2626.2,2626.1,59.11279354]
[1752062347455,2.50427323,2626.5,2626.4,1.9027]
[1752062347652,0.76125,2626.9,2626.8,1.9027]
[1752062347951,0.76125,2626.9,2626.8,55.7167]
[1752062348252,3.2078,2627.0,2626.8,53.814]
[1752062350657,5.8629727,2627.0,2626.9,53.775]
[1752062350953,0.76131,2626.7,2626.2,0.76144]
[1752062351155,0.76131,2626.7,2626.3,53.775]
[1752062351349,0.76131,2626.7,2626.6,1.9027]
[1752062351546,0.76131,2626.7,2626.6,55.6717]
[1752062351858,0.76129,2626.8,2626.6,55.6717]
[1752062352053,0.76129,2626.8,2626.7,1.9027]
[1752062352254,0.76131,2626.7,2626.6,55.6717]
[1752062352455,0.76131,2626.7,2626.6,53.769]
[1752062357358,0.76135,2626.6,2626.3,0.76141]
[1752062357659,0.76135,2626.6,2626.5,1.9027]
[1752062358359,0.76135,2626.6,2626.4,54.42739]
[1752062358560,0.76135,2626.6,2626.5,1.9027]
[1752062358958,0.76135,2626.6,2626.4,54.42739]
[1752062359159,0.76135,2626.6,2626.5,1.9027]
[1752062359558,3.04643039,2626.6,2626.4,54.42739]
[1752062359751,0.76135,2626.6,2626.5,1.9027]
[1752062360158,0.76135,2626.6,2626.4,54.42739]
[1752062360358,0.76135,2626.6,2626.5,1.9027]
[1752062360759,0.76136,2626.5,2626.4,54.42739]
[1752062361052,3.04644818,2626.5,2626.4,54.42739]
[1752062361251,3.04644818,2626.5,2626.4,56.33009]
[1752062362366,2.28508818,2626.5,2626.4,56.33009]
[1752062363261,3.04644818,2626.5,2626.4,56.33009]
[1752062365062,2.28508818,2626.5,2626.4,56.33009]
[1752062365355,3.04644818,2626.5,2626.4,56.33009]
[1752062367164,2.28508818,2626.5,2626.4,56.33009]
[1752062370264,5.68100572,2626.5,2626.4,56.33009]
[1752062370969,2.28508818,2626.5,2626.4,56.33009]
[1752062371669,5.68100572,2626.5,2626.4,56.33009]
[1752062373371,2.28508818,2626.5,2626.4,56.33009]
[1752062376678,6.85174411,2626.5,2626.4,56.33009]
[1752062377875,6.85174411,2626.5,2626.4,57.13889]
[1752062379771,4.56665593,2626.5,2626.4,57.13889]
[1752062380074,6.85161198,2626.5,2626.4,57.13889]
[1752062381477,8.25524985,2626.5,2626.4,55.94209]
[1752062381670,6.85273831,2626.5,2626.4,55.94209]
[1752062381868,6.48382199,2627.0,2626.9,0.76125]
[1752062382172,12.58847914,2627.3,2627.0,0.76122]
[1752062382173,0.7612,2627.1,2627.0,0.76122]
[1752062382571,1.53567,2627.2,2627.1,0.76119]
[1752062382873,1.53567,2627.2,2627.1,54.03919]
[1752062385681,0.7745,2627.2,2627.1,54.03919]
[1752062385978,1.53566,2627.2,2627.1,54.03919]
[1752062386477,2.17813787,2627.2,2627.1,54.03919]
[1752062386975,2.93929787,2627.2,2627.1,54.03919]
[1752062387180,2.17813787,2627.2,2627.1,54.03919]
[1752062387481,3.2078,2627.3,2627.2,0.76116]
[1752062387678,0.7865,2627.3,2627.2,2.66386]
[1752062387880,0.7865,2627.3,2627.2,0.76116]
[1752062388076,0.7865,2627.3,2627.2,2.66386]
[1752062390575,1.40363787,2627.4,2627.3,0.76113]
[1752062390773,1.40363787,2627.4,2627.3,53.91913]
[1752062391379,5.5846699,2627.4,2627.3,53.91913]
[1752062393281,2.16473787,2627.4,2627.3,53.91913]
[1752062393881,4.28901605,2627.4,2627.3,53.91913]
[1752062395278,2.12427818,2627.4,2627.3,55.82183]
[1752062395481,2.88537818,2627.4,2627.3,55.82183]
[1752062396582,2.12427818,2627.4,2627.3,55.82183]
[1752062396882,2.88537818,2627.4,2627.3,55.82183]
[1752062397273,2.12427818,2627.4,2627.3,55.82183]
[1752062397879,2.88537818,2627.4,2627.3,55.82183]
[1752062398986,2.12427818,2627.4,2627.3,55.82183]
[1752062400685,2.12427818,2627.4,2627.3,56.61333]
[1752062400887,2.12427818,2627.4,2627.3,58.01696787]
[1752062401188,2.12427818,2627.4,2627.3,59.29736787]
[1752062401389,2.12427818,2627.4,2627.3,57.89373]
[1752062402189,2.12427818,2627.4,2627.3,55.99103]
[1752062405691,1.40363787,2627.6,2627.5,0.76107]
[1752062405991,3.38465267,2627.6,2627.5,53.73807]
[1752062406190,3.38461411,2627.6,2627.5,53.73807]
[1752062406392,4.14566411,2627.6,2627.5,53.73807]
[1752062406891,3.38461411,2627.6,2627.5,53.73807]
[1752062407888,4.14566411,2627.6,2627.5,53.73807]
[1752062408097,5.50036411,2627.6,2627.5,53.73807]
[1752062414092,1.98097624,2627.6,2627.5,53.73807]
[1752062414290,1.98097624,2627.6,2627.5,55.64077]
[1752062416001,2.74202624,2627.6,2627.5,59.61157]
[1752062417206,1.98097624,2627.6,2627.5,59.61157]
[1752062417500,5.40090827,2627.6,2627.5,59.61157]
[1752062417701,6.16195827,2627.6,2627.5,59.61157]
[1752062417895,2.74202624,2627.6,2627.5,59.61157]
[1752062418298,5.40090827,2627.6,2627.5,59.61157]
[1752062418499,6.16195827,2627.6,2627.5,59.61157]
[1752062418699,5.40090827,2627.6,2627.5,59.61157]
[1752062419296,5.40090827,2627.6,2627.5,61.01520787]
[1752062419504,1.98097624,2627.6,2627.5,66.01520787]
[1752062419802,3.41993203,2627.9,2627.8,0.76099]
[1752062420003,5.38972631,2627.9,2627.8,56.78979]
[1752062420201,3.41993203,2627.9,2627.8,58.69249]
[1752062420502,5.37720605,2627.9,2627.8,58.69249]
[1752062420697,5.37720605,2627.9,2627.8,59.97169]
[1752062421894,1.95727402,2627.9,2627.8,59.97169]
[1752062422603,1.95727402,2627.9,2627.8,58.69249]
[1752062427002,1.95727402,2627.9,2627.8,55.48469]
[1752062427204,1.95727402,2627.9,2627.8,58.69249]
[1752062428605,2.71823402,2627.9,2627.8,58.69249]
[1752062428803,2.71823402,2627.9,2627.8,56.78979]
[1752062431205,1.95727402,2627.9,2627.8,56.78979]
[1752062431706,2.71823402,2627.9,2627.8,56.78979]
[1752062433004,1.95727402,2627.9,2627.8,56.78979]
[1752062434606,2.71823402,2627.9,2627.8,56.78979]
[1752062434906,1.95727402,2627.9,2627.8,56.78979]
[1752062435907,2.71823402,2627.9,2627.8,56.78979]
[1752062436200,2.71823402,2627.9,2627.8,53.58199]
[1752062437609,1.95727402,2627.9,2627.8,53.58199]
[1752062438308,2.71823402,2627.9,2627.8,53.58199]
[1752062441212,1.95727402,2627.9,2627.8,53.58199]
[1752062442715,2.71823402,2627.9,2627.8,53.58199]
[1752062443013,7.46916605,2627.9,2627.8,53.58199]
[1752062443518,6.13816605,2627.9,2627.8,53.58199]
[1752062445020,2.71823402,2627.9,2627.8,52.821]
[1752062445319,7.23093402,2627.9,2627.8,52.821]
[1752062453726,5.92603402,2627.9,2627.8,53.58199]
[1752062454027,9.34428633,2627.9,2627.8,53.58199]
[1752062456125,5.92603402,2627.9,2627.8,53.58199]
[1752062459127,2.71823402,2627.9,2627.8,53.58199]
[1752062459524,2.71823402,2627.9,2627.8,52.821]
[1752062460428,2.71823402,2627.9,2627.8,53.58199]
[1752062463531,4.12187189,2627.9,2627.8,53.58199]
[1752062469236,4.12187189,2627.9,2627.8,52.821]
[1752062469637,4.12187189,2627.9,2627.8,38.96100001]
[1752062469832,0.76105,2627.6,2627.5,0.7903]
[1752062470035,7.54492071,2627.6,2627.5,52.397]
[1752062470436,4.12196189,2627.6,2627.5,52.397]
[1752062474336,3.80559,2627.4,2627.3,52.373]
[1752062474534,0.76122,2627.0,2626.9,0.00571189]
[1752062474838,10.75315324,2627.0,2626.9,0.00571189]
[1752062475141,12.32993189,2627.0,2626.9,0.00571189]
[1752062475343,13.62383189,2627.0,2626.9,0.00571189]
[1752062475841,17.36983189,2627.0,2626.9,0.00571189]
[1752062476042,21.92747275,2627.0,2626.9,0.00571189]
[1752062476342,17.36983189,2627.0,2626.9,0.00571189]
[1752062480644,43.56383189,2627.0,2626.9,0.00571189]
[1752062482545,38.56383189,2627.0,2626.9,0.00571189]
[1752062483345,43.56383189,2627.0,2626.9,0.00571189]
[1752062484340,38.56383189,2627.0,2626.9,0.00571189]
[1752062484540,43.56383189,2627.0,2626.9,0.00571189]
[1752062485245,84.36383189,2627.0,2626.9,0.00571189]
[1752062485546,79.36383189,2627.0,2626.9,0.00571189]
[1752062487940,50.47229402,2627.0,2626.9,0.00571189]
[1752062488141,13.07602517,2627.0,2626.9,0.00571189]
[1752062488342,14.47966304,2627.0,2626.9,1.90841189]
[1752062488644,9.67229402,2627.0,2626.9,1.90841189]
[1752062488844,5.92629402,2627.0,2626.9,1.90841189]
[1752062489237,7.32993189,2627.0,2626.9,1.90841189]
[1752062490439,7.32993189,2627.0,2626.9,3.18621189]
[1752062490635,4.12213189,2627.0,2626.9,3.18621189]
[1752062490841,4.12213189,2627.0,2626.9,1.90841189]
[1752062491244,4.12213189,2627.0,2626.9,0.00571189]
[1752062491442,7.52586304,2627.0,2626.9,0.00571189]
[1752062491642,8.77716304,2627.0,2626.9,0.00571189]
[1752062492043,12.52316304,2627.0,2626.9,0.00571189]
[1752062492242,12.52316304,2627.0,2626.9,1.89e-06]
[1752062492243,9.11943189,2627.0,2626.9,1.89e-06]
[1752062492748,9.11943189,2627.0,2626.3,0.923]
[1752062493047,2.16502787,2626.4,2626.3,0.923]
[1752062493246,7.86830189,2626.4,2626.3,1.9027]
[1752062493450,0.76148,2626.1,2626.0,0.9485]
[1752062493849,2.71875402,2626.1,2626.0,4.2]
[1752062494054,1.95727402,2626.1,2626.0,9.96151]
[1752062494359,1.95727402,2626.1,2626.0,11.36514787]
[1752062495758,1.95727402,2626.1,2626.0,9.96151]
[1752062495958,1.95727402,2626.1,2626.0,11.36514787]
[1752062496254,1.95727402,2626.1,2626.0,9.96151]
[1752062496450,2.71875402,2626.1,2626.0,9.96151]
[1752062497055,2.71875402,2626.1,2626.0,4.96151]
[1752062498060,2.70322622,2626.1,2626.0,4.96151]
[1752062498963,2.70322622,2626.1,2626.0,4.2]
[1752062500460,4.10686409,2626.1,2626.0,4.2]
[1752062503252,5.24913409,2626.1,2625.5,3.2078]
[1752062503456,2.16521787,2625.8,2625.7,1.72537]
[1752062503659,4.10696409,2625.8,2625.7,1.72537]
[1752062503859,4.10696409,2625.8,2625.7,3.62807]
[1752062504355,4.10696409,2625.8,2625.7,2.8665]
[1752062506059,4.10696409,2625.8,2625.7,0.9638]
[1752062507868,0.76165,2625.5,2625.4,3.2078]
[1752062508167,2.70339622,2625.5,2625.4,5.5237]
[1752062508362,2.70339622,2625.5,2625.4,7.4264]
[1752062508561,2.70339622,2625.5,2625.4,8.18808]
[1752062510361,2.70339622,2625.5,2625.4,7.4264]
[1752062510762,2.70339622,2625.5,2625.4,8.18808]
[1752062511168,2.70339622,2625.5,2625.4,7.4264]
[1752062512667,2.70339622,2625.5,2625.4,8.18808]
[1752062513967,2.70339622,2625.5,2625.4,4.98028]
[1752062514670,3.84592622,2625.5,2625.0,3.2078]
[1752062514866,2.70342622,2625.4,2625.3,1.9027]
[1752062516168,4.10706409,2625.4,2625.3,1.9027]
[1752062517770,2.16531787,2625.4,2625.3,1.9027]
[1752062518176,0.76168,2625.4,2625.3,1.9027]
[1752062519770,2.70477401,2625.4,2625.3,1.9027]
[1752062519976,1.94309401,2625.4,2625.3,1.9027]
[1752062520170,2.70477401,2625.4,2625.3,3.95251]
[1752062520566,2.70477401,2625.4,2625.3,3.1908]
[1752062521573,2.70477401,2625.4,2625.3,1.9027]
[1752062523076,3.70007401,2625.4,2625.3,1.9027]
[1752062523276,5.10371188,2625.4,2625.3,1.9027]
[1752062523575,3.70007401,2625.4,2625.3,1.9027]
[1752062524171,5.10371188,2625.4,2625.3,1.9027]
[1752062525074,3.70007401,2625.4,2625.3,1.9027]
[1752062525282,1.94309401,2625.4,2625.3,5.87221]
[1752062525880,1.94309401,2625.4,2625.3,12.27584787]
[1752062526378,1.94309401,2625.4,2625.3,13.60784787]
[1752062529576,3.41251341,2625.9,2625.8,0.76157]
[1752062529777,0.00571189,2626.0,2625.9,0.76154]
[1752062529778,0.76724189,2626.0,2625.9,0.76154]
[1752062529972,0.00571189,2626.0,2625.9,5.05957787]
[1752062530177,0.00571189,2626.0,2625.9,10.05957787]
[1752062530879,3.41251341,2626.2,2626.1,0.76148]
[1752062531081,3.41251341,2626.2,2626.1,7.27561787]
[1752062531380,3.41251341,2626.3,2626.2,0.76145]
[1752062531575,3.41251341,2626.3,2626.2,2.00845]
[1752062531780,3.41251341,2626.3,2626.2,3.91115]
[1752062531980,6.26655789,2626.6,2626.3,0.76142]
[1752062531981,3.41251341,2626.4,2626.3,0.76142]
[1752062532175,4.17390341,2626.4,2626.3,2.94752]
[1752062532380,4.17390341,2626.4,2626.3,3.60322]
[1752062532781,4.17390341,2626.4,2626.3,2.66412]
[1752062533985,5.57754128,2626.5,2626.4,0.76139]
[1752062534282,5.57754128,2626.5,2626.4,2.66409]
[1752062534283,3.41251341,2626.5,2626.4,2.66409]
[1752062534584,5.12906341,2626.6,2626.5,0.76136]
[1752062535186,1.71655,2626.6,2626.5,0.76136]
[1752062538886,0.76136,2626.5,2626.4,0.76137]
[1752062539189,2.16499787,2626.5,2626.4,2.66407]
[1752062540184,2.16499787,2626.5,2626.2,0.76143]
[1752062540384,0.76142,2626.3,2626.2,0.76143]
[1752062540784,0.76142,2626.3,2626.2,2.66413]
[1752062541890,2.6852254,2626.3,2626.2,2.66413]
[1752062542185,4.08886327,2626.3,2626.2,1.9027]
[1752062542390,0.76145,2626.2,2626.1,3.96926]
[1752062542591,3.7100554,2626.2,2626.1,3.96926]
[1752062542786,3.7100554,2626.2,2626.1,5.87196]
[1752062546293,1.90374,2626.1,2625.8,3.2078]
[1752062546497,0.76151,2626.1,2626.0,3.2078]
[1752062546794,2.67790112,2626.1,2626.0,5.87201]
[1752062547793,2.67790112,2626.1,2626.0,7.17251]
[1752062547993,1.91639112,2626.1,2626.0,7.17251]
[1752062548389,1.91639112,2626.1,2626.0,8.57614787]
[1752062548594,0.76138,2626.5,2626.4,0.76139]
[1752062548794,0.76138,2626.5,2626.4,3.96919]
[1752062549088,0.76138,2626.5,2626.4,1.9027]
[1752062549296,0.76138,2626.5,2626.4,2.66409]
[1752062551397,0.76138,2626.5,2626.4,1.9027]
[1752062552498,0.76139,2626.5,2626.4,0.76138]
[1752062552698,0.76135,2626.6,2626.5,0.76134]
[1752062552999,6.88899128,2626.7,2626.6,0.76134]
[1752062553197,6.88899128,2626.7,2626.6,2.66404]
[1752062553398,6.88899128,2626.7,2626.6,0.76134]
[1752062555306,3.47647787,2626.7,2626.6,0.76134]
[1752062556804,0.76137,2626.6,2626.5,0.76134]
[1752062557004,4.18050076,2626.6,2626.5,0.76134]
[1752062557304,4.18050076,2626.6,2626.5,2.66404]
[1752062558200,0.76137,2626.6,2626.5,2.66404]